[Event "Titled Tuesday Blitz April 25 Late 2023"]
[White "Rodriguez Santiago, Jaime"]
[Black "Plotnikov, Pavel"]
[WhiteFideId "3100898"]
[BlackFideId "4170342"]
[WhiteElo "2025"]
[BlackElo "2298"]
[Result "1-0"]
[Round "01"]
[TimeControl "180+2"]
[Date "2023.04.25"]
[WhiteClock "0:00:01"]
[BlackClock "0:00:01"]

1. c4 {[%clk 0:00:01]}  e6 {[%clk 0:00:01]} 2. Nf3 {[%clk 0:00:01]}  b6 {[%clk 0:00:01]} 3. g3 {[%clk 0:00:01]}  Bb7 {[%clk 0:00:01]} 4. Bg2 {[%clk 0:00:01]}  Nf6 {[%clk 0:00:01]} 5. O-O {[%clk 0:00:01]}  Be7 {[%clk 0:00:01]} 6. b3 {[%clk 0:00:01]}  O-O {[%clk 0:00:01]} 7. Bb2 {[%clk 0:00:01]}  c5 {[%clk 0:00:01]} 8. e3 {[%clk 0:00:01]}  Nc6 {[%clk 0:00:01]} 9. Qe2 {[%clk 0:00:01]}  d5 {[%clk 0:00:01]} 10. d3 {[%clk 0:00:01]}  Rc8 {[%clk 0:00:01]} 11. Nc3 {[%clk 0:00:01]}  a6 {[%clk 0:00:01]} 12. Rad1 {[%clk 0:00:01]} 1-0


[Site "https://www.chess.com"]

[Event "Titled Tuesday Blitz April 25 Late 2023"]
[White "Atanasov, Anthony"]
[Black "Gonzalez, Francisco Silva"]
[WhiteFideId "2623897"]
[BlackFideId "1512285"]
[WhiteElo "2326"]
[BlackElo "2074"]
[Result "0-1"]
[Round "01"]
[TimeControl "180+2"]
[Date "2023.04.25"]
[WhiteClock "0:00:10"]
[BlackClock "0:00:02"]

1. d4 {[%clk 0:03:00]}  Nf6 {[%clk 0:02:59]} 2. Nf3 {[%clk 0:02:59]}  d5 {[%clk 0:02:58]} 3. Bf4 {[%clk 0:02:58]}  c5 {[%clk 0:02:59]} 4. e3 {[%clk 0:02:56]}  Nc6 {[%clk 0:02:59]} 5. Nbd2 {[%clk 0:02:55]}  cxd4 {[%clk 0:02:59]} 6. exd4 {[%clk 0:02:56]}  Bf5 {[%clk 0:02:58]} 7. c3 {[%clk 0:02:54]}  a6 {[%clk 0:02:59]} 8. Nh4 {[%clk 0:02:50]}  Be4 {[%clk 0:02:57]} 9. Nxe4 {[%clk 0:02:48]}  Nxe4 {[%clk 0:02:56]} 10. Nf3 {[%clk 0:02:43]}  e6 {[%clk 0:02:54]} 11. Bd3 {[%clk 0:02:43]}  Nf6 {[%clk 0:02:53]} 12. Ne5 {[%clk 0:02:42]}  Nxe5 {[%clk 0:02:53]} 13. dxe5 {[%clk 0:02:41]}  Nd7 {[%clk 0:02:52]} 14. Qg4 {[%clk 0:02:41]}  Nc5 {[%clk 0:02:52]} 15. Bc2 {[%clk 0:02:40]}  h5 {[%clk 0:02:52]} 16. Qg3 {[%clk 0:02:39]}  b5 {[%clk 0:02:49]} 17. Be3 {[%clk 0:02:38]}  Rc8 {[%clk 0:02:46]} 18. O-O-O {[%clk 0:02:38]}  Qc7 {[%clk 0:02:36]} 19. Kb1 {[%clk 0:02:35]}  a5 {[%clk 0:02:35]} 20. f4 {[%clk 0:02:34]}  g6 {[%clk 0:02:33]} 21. Bxg6 {[%clk 0:02:29]}  fxg6 {[%clk 0:02:32]} 22. Qxg6+ {[%clk 0:02:30]}  Qf7 {[%clk 0:02:32]} 23. Qc2 {[%clk 0:02:26]}  Qh7 {[%clk 0:02:29]} 24. f5 {[%clk 0:02:23]}  b4 {[%clk 0:02:20]} 25. Bxc5 {[%clk 0:02:19]}  Rxc5 {[%clk 0:02:16]} 26. Qa4+ {[%clk 0:02:19]}  Kd8 {[%clk 0:02:15]} 27. Rhf1 {[%clk 0:02:17]}  Rg8 {[%clk 0:02:09]} 28. cxb4 {[%clk 0:02:09]}  axb4 {[%clk 0:01:57]} 29. Ka1 {[%clk 0:02:02]}  Qd7 {[%clk 0:01:52]} 30. Qa8+ {[%clk 0:01:58]}  Qc8 {[%clk 0:01:52]} 31. Qa7 {[%clk 0:01:49]}  Qc7 {[%clk 0:01:51]} 32. Qa6 {[%clk 0:01:45]}  Qc6 {[%clk 0:01:48]} 33. Qd3 {[%clk 0:01:39]}  Rxg2 {[%clk 0:01:45]} 34. fxe6 {[%clk 0:01:38]}  Be7 {[%clk 0:01:45]} 35. Qf3 {[%clk 0:01:20]}  Rxh2 {[%clk 0:01:41]} 36. Qg3 {[%clk 0:01:16]}  Rhc2 {[%clk 0:01:39]} 37. Qg8+ {[%clk 0:01:16]}  Kc7 {[%clk 0:01:39]} 38. Rb1 {[%clk 0:01:10]}  Rc1 {[%clk 0:01:39]} 39. Qf7 {[%clk 0:01:06]}  Rxb1+ {[%clk 0:01:39]} 40. Rxb1 {[%clk 0:01:07]}  Kd8 {[%clk 0:01:20]} 41. Qg8+ {[%clk 0:00:49]}  Qe8 {[%clk 0:01:19]} 42. Qh7 {[%clk 0:00:49]}  Kc7 {[%clk 0:01:16]} 43. Rf1 {[%clk 0:00:46]}  Kb6 {[%clk 0:01:15]} 44. b3 {[%clk 0:00:44]}  Qc8 {[%clk 0:01:12]} 45. Kb1 {[%clk 0:00:39]}  Qa6 {[%clk 0:01:08]} 46. Rf2 {[%clk 0:00:20]}  Qc8 {[%clk 0:00:53]} 47. Rf1 {[%clk 0:00:10]}  Qxe6 {[%clk 0:00:53]} 48. Qxh5 {[%clk 0:00:09]}  d4 {[%clk 0:00:47]} 49. Qd1 {[%clk 0:00:05]}  Qxe5 {[%clk 0:00:46]} 50. Qd3 {[%clk 0:00:06]}  Rc3 {[%clk 0:00:43]} 51. Qg6+ {[%clk 0:00:06]}  Bd6 {[%clk 0:00:38]} 52. Ka1 {[%clk 0:00:05]}  d3 {[%clk 0:00:37]} 53. Kb1 {[%clk 0:00:06]}  Rc2 {[%clk 0:00:35]} 54. Qg1+ {[%clk 0:00:05]}  Qc5 {[%clk 0:00:27]} 55. Qg8 {[%clk 0:00:03]}  Qc3 {[%clk 0:00:23]} 56. Qd8+ {[%clk 0:00:03]}  Qc7 {[%clk 0:00:20]} 57. Qe8 {[%clk 0:00:02]}  d2 {[%clk 0:00:19]} 58. Qe3+ {[%clk 0:00:02]}  Qc5 {[%clk 0:00:18]} 59. Qxc5+ {[%clk 0:00:01]}  Rxc5 {[%clk 0:00:17]} 60. Rd1 {[%clk 0:00:01]}  Bf4 {[%clk 0:00:17]} 61. a4 {[%clk 0:00:02]}  Rc1+ {[%clk 0:00:17]} 62. Kb2 {[%clk 0:00:02]}  Rxd1 {[%clk 0:00:17]} 63. a5+ {[%clk 0:00:03]}  Ka6 {[%clk 0:00:16]} 64. Kc2 {[%clk 0:00:04]}  Rc1+ {[%clk 0:00:16]} 65. Kd3 {[%clk 0:00:05]}  Rc3+ {[%clk 0:00:15]} 66. Ke4 {[%clk 0:00:06]}  d1=Q {[%clk 0:00:15]} 67. Kf5 {[%clk 0:00:07]}  Qd5+ {[%clk 0:00:15]} 68. Kg4 {[%clk 0:00:06]}  Rg3+ {[%clk 0:00:11]} 69. Kxf4 {[%clk 0:00:06]}  Qd6+ {[%clk 0:00:11]} 70. Ke4 {[%clk 0:00:07]}  Qd3+ {[%clk 0:00:11]} 71. Kf4 {[%clk 0:00:07]}  Qxb3 {[%clk 0:00:11]} 72. Ke4 {[%clk 0:00:07]}  Rg4+ {[%clk 0:00:11]} 73. Kf5 {[%clk 0:00:07]}  Qg8 {[%clk 0:00:11]} 74. Ke5 {[%clk 0:00:07]}  Qg7+ {[%clk 0:00:10]} 75. Kf5 {[%clk 0:00:07]}  Qg6+ {[%clk 0:00:10]} 76. Ke5 {[%clk 0:00:08]}  Qh5+ {[%clk 0:00:10]} 77. Kf6 {[%clk 0:00:08]}  Rg6+ {[%clk 0:00:10]} 78. Kf7 {[%clk 0:00:09]}  Qh7+ {[%clk 0:00:11]} 79. Kf8 {[%clk 0:00:10]}  Kxa5 {[%clk 0:00:08]} 80. Ke8 {[%clk 0:00:10]}  Rg8# {[%clk 0:00:02]} 0-1


[Site "https://www.chess.com"]

[Event "Titled Tuesday Blitz April 25 Late 2023"]
[White "Di Berardino, Diego Rafael"]
[Black "Panico, Nick"]
[WhiteFideId "2105446"]
[BlackFideId "2026724"]
[WhiteElo "2432"]
[BlackElo "1982"]
[Result "1-0"]
[Round "01"]
[TimeControl "180+2"]
[Date "2023.04.25"]
[WhiteClock "0:00:09"]
[BlackClock "0:00:24"]

1. e4 {[%clk 0:02:58]}  e6 {[%clk 0:02:59]} 2. d4 {[%clk 0:02:55]}  d5 {[%clk 0:02:59]} 3. Nd2 {[%clk 0:02:56]}  Nf6 {[%clk 0:02:59]} 4. e5 {[%clk 0:02:55]}  Nfd7 {[%clk 0:02:59]} 5. f4 {[%clk 0:02:56]}  c5 {[%clk 0:02:59]} 6. Ngf3 {[%clk 0:02:56]}  Nc6 {[%clk 0:02:57]} 7. Nb3 {[%clk 0:02:56]}  Qb6 {[%clk 0:02:50]} 8. Be2 {[%clk 0:02:50]}  a5 {[%clk 0:02:49]} 9. c3 {[%clk 0:02:31]}  a4 {[%clk 0:02:43]} 10. dxc5 {[%clk 0:02:18]}  Nxc5 {[%clk 0:02:39]} 11. Nbd4 {[%clk 0:02:18]}  Ne4 {[%clk 0:02:32]} 12. a3 {[%clk 0:02:14]}  Bc5 {[%clk 0:02:29]} 13. O-O {[%clk 0:02:09]}  Na5 {[%clk 0:02:24]} 14. Qxa4+ {[%clk 0:02:00]}  Bd7 {[%clk 0:02:23]} 15. Qd1 {[%clk 0:02:00]}  Nb3 {[%clk 0:02:17]} 16. Rb1 {[%clk 0:01:57]}  Nxc1 {[%clk 0:02:12]} 17. Qxc1 {[%clk 0:01:55]}  O-O {[%clk 0:02:06]} 18. Kh1 {[%clk 0:01:54]}  Rfc8 {[%clk 0:02:05]} 19. Qe1 {[%clk 0:01:42]}  Qc7 {[%clk 0:01:43]} 20. Bd3 {[%clk 0:01:41]}  Bc6 {[%clk 0:01:39]} 21. Qh4 {[%clk 0:01:27]}  h6 {[%clk 0:01:30]} 22. Rbe1 {[%clk 0:01:24]}  Be7 {[%clk 0:01:22]} 23. Qh5 {[%clk 0:01:19]}  Be8 {[%clk 0:01:22]} 24. Qh3 {[%clk 0:01:13]}  b5 {[%clk 0:01:17]} 25. f5 {[%clk 0:01:07]}  Ng5 {[%clk 0:00:53]} 26. Nxg5 {[%clk 0:01:05]}  Bxg5 {[%clk 0:00:54]} 27. fxe6 {[%clk 0:00:59]}  Qe7 {[%clk 0:00:52]} 28. exf7+ {[%clk 0:00:53]}  Bxf7 {[%clk 0:00:53]} 29. e6 {[%clk 0:00:52]}  Be8 {[%clk 0:00:52]} 30. Nf5 {[%clk 0:00:34]}  Qc5 {[%clk 0:00:44]} 31. Qg3 {[%clk 0:00:32]}  Bg6 {[%clk 0:00:42]} 32. Nxh6+ {[%clk 0:00:29]}  Bxh6 {[%clk 0:00:41]} 33. Bxg6 {[%clk 0:00:29]}  Rf8 {[%clk 0:00:39]} 34. Rxf8+ {[%clk 0:00:24]}  Rxf8 {[%clk 0:00:37]} 35. Bf7+ {[%clk 0:00:18]}  Kh8 {[%clk 0:00:36]} 36. e7 {[%clk 0:00:18]}  Rxf7 {[%clk 0:00:34]} 37. e8=Q+ {[%clk 0:00:18]}  Rf8 {[%clk 0:00:34]} 38. Qe2 {[%clk 0:00:16]}  b4 {[%clk 0:00:34]} 39. axb4 {[%clk 0:00:15]}  Qc8 {[%clk 0:00:33]} 40. h3 {[%clk 0:00:15]}  Kh7 {[%clk 0:00:33]} 41. Qeg4 {[%clk 0:00:13]}  Qc6 {[%clk 0:00:32]} 42. Re7 {[%clk 0:00:11]}  Qf6 {[%clk 0:00:31]} 43. Rd7 {[%clk 0:00:08]}  Qf1+ {[%clk 0:00:31]} 44. Kh2 {[%clk 0:00:09]}  d4 {[%clk 0:00:27]} 45. Qxg7+ {[%clk 0:00:08]}  Bxg7 {[%clk 0:00:24]} 46. Qxg7# {[%clk 0:00:09]} 1-0


[Site "https://www.chess.com"]

[Event "Titled Tuesday Blitz April 25 Late 2023"]
[White "Rosen, Eric"]
[Black "Albuquerque Junior,Wellington S."]
[WhiteFideId "2032562"]
[BlackFideId "2151480"]
[WhiteElo "2331"]
[BlackElo "2109"]
[Result "1-0"]
[Round "01"]
[TimeControl "180+2"]
[Date "2023.04.25"]
[WhiteClock "0:00:08"]
[BlackClock "0:00:08"]

1. e4 {[%clk 0:02:59]}  c5 {[%clk 0:02:59]} 2. Nf3 {[%clk 0:02:59]}  d6 {[%clk 0:02:59]} 3. Nc3 {[%clk 0:02:59]}  Nf6 {[%clk 0:02:59]} 4. e5 {[%clk 0:03:00]}  dxe5 {[%clk 0:02:59]} 5. Nxe5 {[%clk 0:03:01]}  Nbd7 {[%clk 0:03:00]} 6. d4 {[%clk 0:02:59]}  cxd4 {[%clk 0:02:55]} 7. Qxd4 {[%clk 0:02:59]}  e6 {[%clk 0:02:53]} 8. Bb5 {[%clk 0:02:51]}  a6 {[%clk 0:02:53]} 9. Bxd7+ {[%clk 0:02:36]}  Nxd7 {[%clk 0:02:40]} 10. Bf4 {[%clk 0:02:30]}  Qb6 {[%clk 0:02:11]} 11. Qxb6 {[%clk 0:01:43]}  Nxb6 {[%clk 0:02:11]} 12. O-O-O {[%clk 0:01:44]}  f6 {[%clk 0:02:03]} 13. Be3 {[%clk 0:01:44]}  Nd7 {[%clk 0:01:50]} 14. Nc4 {[%clk 0:01:44]}  b5 {[%clk 0:01:35]} 15. Nd6+ {[%clk 0:01:44]}  Bxd6 {[%clk 0:01:36]} 16. Rxd6 {[%clk 0:01:45]}  Ne5 {[%clk 0:01:29]} 17. Rhd1 {[%clk 0:01:41]}  O-O {[%clk 0:01:25]} 18. Bc5 {[%clk 0:01:30]}  Re8 {[%clk 0:01:18]} 19. b3 {[%clk 0:01:17]}  Bb7 {[%clk 0:01:08]} 20. Bd4 {[%clk 0:00:47]}  Nf7 {[%clk 0:01:01]} 21. Rd7 {[%clk 0:00:47]}  Bc6 {[%clk 0:00:45]} 22. Rc7 {[%clk 0:00:46]}  Rec8 {[%clk 0:00:46]} 23. Rxc8+ {[%clk 0:00:37]}  Rxc8 {[%clk 0:00:47]} 24. f4 {[%clk 0:00:24]}  Rd8 {[%clk 0:00:32]} 25. g3 {[%clk 0:00:20]}  Nh6 {[%clk 0:00:20]} 26. h3 {[%clk 0:00:14]}  Nf5 {[%clk 0:00:20]} 27. Bf2 {[%clk 0:00:15]}  Rxd1+ {[%clk 0:00:20]} 28. Nxd1 {[%clk 0:00:14]}  h5 {[%clk 0:00:20]} 29. Kd2 {[%clk 0:00:14]}  Kf7 {[%clk 0:00:20]} 30. Nb2 {[%clk 0:00:10]}  Bg2 {[%clk 0:00:20]} 31. h4 {[%clk 0:00:10]}  Bb7 {[%clk 0:00:19]} 32. Nd3 {[%clk 0:00:10]}  Bc8 {[%clk 0:00:15]} 33. Nc5 {[%clk 0:00:10]}  Nd6 {[%clk 0:00:14]} 34. Kc3 {[%clk 0:00:09]}  e5 {[%clk 0:00:13]} 35. fxe5 {[%clk 0:00:08]}  fxe5 {[%clk 0:00:14]} 36. a4 {[%clk 0:00:05]}  bxa4 {[%clk 0:00:14]} 37. bxa4 {[%clk 0:00:06]}  g6 {[%clk 0:00:13]} 38. Kb4 {[%clk 0:00:05]}  Nf5 {[%clk 0:00:11]} 39. Ka5 {[%clk 0:00:05]}  e4 {[%clk 0:00:08]} 40. Nxe4 {[%clk 0:00:05]}  Ke6 {[%clk 0:00:07]} 41. Kb6 {[%clk 0:00:04]}  Kd5 {[%clk 0:00:08]} 42. Ng5 {[%clk 0:00:04]}  Nd4 {[%clk 0:00:08]} 43. Bxd4 {[%clk 0:00:04]}  Kxd4 {[%clk 0:00:09]} 44. a5 {[%clk 0:00:04]}  Kc3 {[%clk 0:00:09]} 45. Nf7 {[%clk 0:00:03]}  Kxc2 {[%clk 0:00:09]} 46. Nd6 {[%clk 0:00:04]}  Be6 {[%clk 0:00:09]} 47. Kxa6 {[%clk 0:00:04]}  Bd5 {[%clk 0:00:09]} 48. Kb6 {[%clk 0:00:04]}  Kd3 {[%clk 0:00:10]} 49. a6 {[%clk 0:00:04]}  Ke3 {[%clk 0:00:10]} 50. Nb7 {[%clk 0:00:05]}  Bf3 {[%clk 0:00:08]} 51. a7 {[%clk 0:00:05]}  Kf2 {[%clk 0:00:07]} 52. a8=Q {[%clk 0:00:06]}  Kxg3 {[%clk 0:00:08]} 53. Qg8 {[%clk 0:00:06]}  Be4 {[%clk 0:00:08]} 54. Nd6 {[%clk 0:00:05]}  Bd3 {[%clk 0:00:08]} 55. Qd8 {[%clk 0:00:05]}  Kg4 {[%clk 0:00:07]} 56. Qg5+ {[%clk 0:00:06]}  Kh3 {[%clk 0:00:07]} 57. Kc5 {[%clk 0:00:06]}  Be2 {[%clk 0:00:07]} 58. Kd4 {[%clk 0:00:07]}  Bg4 {[%clk 0:00:07]} 59. Ke3 {[%clk 0:00:07]}  Kg2 {[%clk 0:00:07]} 60. Qf4 {[%clk 0:00:07]}  Kh1 {[%clk 0:00:08]} 61. Qg3 {[%clk 0:00:07]}  Bd7 {[%clk 0:00:07]} 62. Kf2 {[%clk 0:00:07]}  Bc6 {[%clk 0:00:08]} 63. Qg1# {[%clk 0:00:08]} 1-0


[Site "https://www.chess.com"]

[Event "Titled Tuesday Blitz April 25 Late 2023"]
[White "Taboas Rodriguez, Daniel"]
[Black "Bogaudinov, Rushan"]
[WhiteFideId "2208466"]
[BlackFideId "4129288"]
[WhiteElo "2365"]
[BlackElo "1967"]
[Result "0-1"]
[Round "01"]
[TimeControl "180+2"]
[Date "2023.04.25"]
[WhiteClock "0:00:28"]
[BlackClock "0:00:17"]

1. d4 {[%clk 0:02:59]}  d5 {[%clk 0:02:58]} 2. Nf3 {[%clk 0:03:00]}  Nf6 {[%clk 0:02:57]} 3. c4 {[%clk 0:03:00]}  dxc4 {[%clk 0:02:57]} 4. e3 {[%clk 0:03:00]}  e6 {[%clk 0:02:57]} 5. Bxc4 {[%clk 0:03:00]}  Be7 {[%clk 0:02:57]} 6. O-O {[%clk 0:03:00]}  O-O {[%clk 0:02:56]} 7. Nc3 {[%clk 0:02:55]}  a6 {[%clk 0:02:56]} 8. a4 {[%clk 0:02:52]}  c5 {[%clk 0:02:55]} 9. Qe2 {[%clk 0:02:51]}  Nc6 {[%clk 0:02:55]} 10. dxc5 {[%clk 0:02:48]}  Bxc5 {[%clk 0:02:54]} 11. e4 {[%clk 0:02:49]}  e5 {[%clk 0:02:41]} 12. Bg5 {[%clk 0:02:49]}  Bg4 {[%clk 0:02:39]} 13. Nd5 {[%clk 0:02:20]}  Nd4 {[%clk 0:02:37]} 14. Nxd4 {[%clk 0:02:19]}  Bxe2 {[%clk 0:02:34]} 15. Nxe2 {[%clk 0:02:20]}  Be7 {[%clk 0:02:26]} 16. Bxf6 {[%clk 0:02:09]}  Bxf6 {[%clk 0:02:26]} 17. Rfd1 {[%clk 0:02:08]}  Rc8 {[%clk 0:02:14]} 18. b3 {[%clk 0:02:05]}  Qa5 {[%clk 0:02:09]} 19. Ng3 {[%clk 0:01:57]}  Bg5 {[%clk 0:01:56]} 20. Nf5 {[%clk 0:01:55]}  Qc5 {[%clk 0:01:49]} 21. h4 {[%clk 0:01:52]}  Bd8 {[%clk 0:01:39]} 22. h5 {[%clk 0:01:43]}  g6 {[%clk 0:01:33]} 23. Nfe3 {[%clk 0:01:34]}  Kg7 {[%clk 0:01:29]} 24. hxg6 {[%clk 0:01:21]}  hxg6 {[%clk 0:01:28]} 25. b4 {[%clk 0:01:15]}  Qa7 {[%clk 0:01:20]} 26. b5 {[%clk 0:01:15]}  Rh8 {[%clk 0:01:08]} 27. Rab1 {[%clk 0:01:12]}  axb5 {[%clk 0:01:02]} 28. Bxb5 {[%clk 0:01:06]}  Bg5 {[%clk 0:00:50]} 29. Bd7 {[%clk 0:00:58]}  Rcd8 {[%clk 0:00:48]} 30. Bb5 {[%clk 0:00:57]}  Rh4 {[%clk 0:00:44]} 31. Rb4 {[%clk 0:00:37]}  Bxe3 {[%clk 0:00:33]} 32. Nxe3 {[%clk 0:00:38]}  Rxd1+ {[%clk 0:00:31]} 33. Nxd1 {[%clk 0:00:39]}  Qa5 {[%clk 0:00:25]} 34. Rb1 {[%clk 0:00:31]}  Qe1+ {[%clk 0:00:24]} 35. Bf1 {[%clk 0:00:31]}  Rxe4 {[%clk 0:00:17]} 36. a5 {[%clk 0:00:28]}  Rd4 {[%clk 0:00:17]} 0-1


[Site "https://www.chess.com"]

[Event "Titled Tuesday Blitz April 25 Late 2023"]
[White "Chernobay, Artem"]
[Black "Marchesich, Giovanni"]
[WhiteFideId "4167406"]
[BlackFideId "2824790"]
[WhiteElo "2474"]
[BlackElo "2209"]
[Result "0-1"]
[Round "01"]
[TimeControl "180+2"]
[Date "2023.04.25"]
[WhiteClock "0:00:03"]
[BlackClock "0:00:13"]

1. e4 {[%clk 0:02:58]}  e5 {[%clk 0:02:59]} 2. Nc3 {[%clk 0:02:58]}  Nf6 {[%clk 0:02:58]} 3. f4 {[%clk 0:02:58]}  d5 {[%clk 0:02:58]} 4. fxe5 {[%clk 0:02:57]}  Nxe4 {[%clk 0:02:58]} 5. Qf3 {[%clk 0:02:58]}  Nc6 {[%clk 0:02:58]} 6. Nxe4 {[%clk 0:02:47]}  Nd4 {[%clk 0:02:56]} 7. Qd1 {[%clk 0:02:23]}  dxe4 {[%clk 0:02:55]} 8. c3 {[%clk 0:02:19]}  Nc6 {[%clk 0:02:52]} 9. d4 {[%clk 0:02:15]}  exd3 {[%clk 0:02:49]} 10. Bxd3 {[%clk 0:01:54]}  Nxe5 {[%clk 0:02:48]} 11. Bb5+ {[%clk 0:01:53]}  Bd7 {[%clk 0:02:43]} 12. Qe2 {[%clk 0:01:50]}  Bd6 {[%clk 0:02:24]} 13. Nf3 {[%clk 0:01:49]}  O-O {[%clk 0:02:23]} 14. O-O {[%clk 0:01:48]}  Nxf3+ {[%clk 0:02:15]} 15. Rxf3 {[%clk 0:01:48]}  Bg4 {[%clk 0:02:09]} 16. Be3 {[%clk 0:01:42]}  Bxf3 {[%clk 0:02:09]} 17. Qxf3 {[%clk 0:01:43]}  c6 {[%clk 0:02:07]} 18. Bc4 {[%clk 0:01:42]}  Qe7 {[%clk 0:02:02]} 19. Bd4 {[%clk 0:01:37]}  Bc5 {[%clk 0:02:00]} 20. Rf1 {[%clk 0:01:29]}  Bxd4+ {[%clk 0:01:59]} 21. cxd4 {[%clk 0:01:30]}  Rae8 {[%clk 0:01:55]} 22. Kh1 {[%clk 0:01:28]}  g6 {[%clk 0:01:48]} 23. d5 {[%clk 0:01:25]}  cxd5 {[%clk 0:01:45]} 24. Bxd5 {[%clk 0:01:24]}  b6 {[%clk 0:01:39]} 25. h3 {[%clk 0:01:21]}  Kg7 {[%clk 0:01:39]} 26. Qb3 {[%clk 0:01:14]}  Rd8 {[%clk 0:01:28]} 27. a4 {[%clk 0:01:10]}  Rd6 {[%clk 0:01:28]} 28. Qc3+ {[%clk 0:01:08]}  f6 {[%clk 0:01:22]} 29. Re1 {[%clk 0:00:57]}  Qd7 {[%clk 0:01:11]} 30. Bf3 {[%clk 0:00:57]}  Re8 {[%clk 0:01:00]} 31. Rf1 {[%clk 0:00:55]}  Qe7 {[%clk 0:00:51]} 32. b4 {[%clk 0:00:49]}  Qe5 {[%clk 0:00:50]} 33. Qc7+ {[%clk 0:00:48]}  Re7 {[%clk 0:00:49]} 34. Qc8 {[%clk 0:00:47]}  Re8 {[%clk 0:00:44]} 35. Qc7+ {[%clk 0:00:46]}  Qe7 {[%clk 0:00:44]} 36. Qc3 {[%clk 0:00:45]}  Re6 {[%clk 0:00:39]} 37. Kh2 {[%clk 0:00:31]}  Re1 {[%clk 0:00:34]} 38. Rf2 {[%clk 0:00:24]}  Qe5+ {[%clk 0:00:33]} 39. Qxe5 {[%clk 0:00:24]}  R8xe5 {[%clk 0:00:31]} 40. Rc2 {[%clk 0:00:25]}  Re7 {[%clk 0:00:30]} 41. Rc8 {[%clk 0:00:19]}  Ra1 {[%clk 0:00:28]} 42. Bc6 {[%clk 0:00:18]}  Rb1 {[%clk 0:00:21]} 43. b5 {[%clk 0:00:17]}  Rb2 {[%clk 0:00:21]} 44. Bd5 {[%clk 0:00:17]}  f5 {[%clk 0:00:18]} 45. h4 {[%clk 0:00:16]}  Kf6 {[%clk 0:00:18]} 46. Rc6+ {[%clk 0:00:15]}  Ke5 {[%clk 0:00:18]} 47. Bf3 {[%clk 0:00:15]}  Kf4 {[%clk 0:00:17]} 48. Kh3 {[%clk 0:00:14]}  Ke3 {[%clk 0:00:14]} 49. Rc3+ {[%clk 0:00:12]}  Kd2 {[%clk 0:00:13]} 50. Rc6 {[%clk 0:00:13]}  Rg7 {[%clk 0:00:11]} 51. Kg3 {[%clk 0:00:12]}  h6 {[%clk 0:00:10]} 52. Kf4 {[%clk 0:00:11]}  Rb4+ {[%clk 0:00:10]} 53. Ke5 {[%clk 0:00:12]}  Rxh4 {[%clk 0:00:10]} 54. Rd6+ {[%clk 0:00:11]}  Kc3 {[%clk 0:00:10]} 55. g3 {[%clk 0:00:10]}  Rxa4 {[%clk 0:00:10]} 56. Rc6+ {[%clk 0:00:10]}  Kb4 {[%clk 0:00:10]} 57. Bd5 {[%clk 0:00:09]}  Ra5 {[%clk 0:00:09]} 58. Rc4+ {[%clk 0:00:08]}  Ka3 {[%clk 0:00:08]} 59. Kd4 {[%clk 0:00:08]}  Rxb5 {[%clk 0:00:08]} 60. Rc2 {[%clk 0:00:07]}  Rxd5+ {[%clk 0:00:08]} 61. Kxd5 {[%clk 0:00:07]}  Kb3 {[%clk 0:00:08]} 62. Rc8 {[%clk 0:00:07]}  a5 {[%clk 0:00:09]} 63. Rb8 {[%clk 0:00:07]}  Ka4 {[%clk 0:00:08]} 64. Rxb6 {[%clk 0:00:07]}  h5 {[%clk 0:00:08]} 65. Ke5 {[%clk 0:00:06]}  Re7+ {[%clk 0:00:08]} 66. Kf6 {[%clk 0:00:06]}  Re3 {[%clk 0:00:08]} 67. Kxg6 {[%clk 0:00:05]}  Rxg3+ {[%clk 0:00:08]} 68. Kxh5 {[%clk 0:00:05]}  Rf3 {[%clk 0:00:09]} 69. Kg5 {[%clk 0:00:05]}  Rf1 {[%clk 0:00:09]} 70. Rb8 {[%clk 0:00:04]}  Ka3 {[%clk 0:00:10]} 71. Rb7 {[%clk 0:00:04]}  a4 {[%clk 0:00:10]} 72. Rb8 {[%clk 0:00:04]}  Ka2 {[%clk 0:00:11]} 73. Rb7 {[%clk 0:00:04]}  a3 {[%clk 0:00:11]} 74. Rb8 {[%clk 0:00:05]}  Ka1 {[%clk 0:00:12]} 75. Rb7 {[%clk 0:00:05]}  a2 {[%clk 0:00:12]} 76. Rb8 {[%clk 0:00:05]}  Rb1 {[%clk 0:00:13]} 77. Rh8 {[%clk 0:00:04]}  Rb5 {[%clk 0:00:13]} 78. Rh1+ {[%clk 0:00:03]}  Kb2 {[%clk 0:00:13]} 0-1


[Site "https://www.chess.com"]

[Event "Titled Tuesday Blitz April 25 Late 2023"]
[White "Tsyhanchuk, Stanislav"]
[Black "Schnaider, Ilan"]
[WhiteFideId "13505130"]
[BlackFideId "169013"]
[WhiteElo "2173"]
[BlackElo "2224"]
[Result "0-1"]
[Round "01"]
[TimeControl "180+2"]
[Date "2023.04.25"]
[WhiteClock "0:00:15"]
[BlackClock "0:00:28"]

1. c4 {[%clk 0:03:00]}  Nf6 {[%clk 0:02:51]} 2. Nc3 {[%clk 0:03:00]}  d5 {[%clk 0:02:50]} 3. cxd5 {[%clk 0:02:59]}  Nxd5 {[%clk 0:02:48]} 4. e4 {[%clk 0:02:59]}  Nxc3 {[%clk 0:02:48]} 5. bxc3 {[%clk 0:03:00]}  g6 {[%clk 0:02:48]} 6. d4 {[%clk 0:03:00]}  Bg7 {[%clk 0:02:48]} 7. Bc4 {[%clk 0:02:59]}  c5 {[%clk 0:02:48]} 8. Ne2 {[%clk 0:02:59]}  O-O {[%clk 0:02:48]} 9. O-O {[%clk 0:02:58]}  Nc6 {[%clk 0:02:43]} 10. Be3 {[%clk 0:02:58]}  b6 {[%clk 0:02:36]} 11. Rc1 {[%clk 0:02:48]}  Bb7 {[%clk 0:02:31]} 12. f4 {[%clk 0:02:44]}  Rc8 {[%clk 0:02:26]} 13. d5 {[%clk 0:02:39]}  Na5 {[%clk 0:02:25]} 14. Bd3 {[%clk 0:02:39]}  c4 {[%clk 0:02:05]} 15. Bb1 {[%clk 0:02:39]}  e6 {[%clk 0:02:05]} 16. d6 {[%clk 0:02:32]}  e5 {[%clk 0:01:57]} 17. fxe5 {[%clk 0:02:31]}  Bxe5 {[%clk 0:01:56]} 18. Bf4 {[%clk 0:02:31]}  Nc6 {[%clk 0:01:32]} 19. Qd5 {[%clk 0:02:15]}  Nd4 {[%clk 0:01:03]} 20. Qxe5 {[%clk 0:02:11]}  Nxe2+ {[%clk 0:01:03]} 21. Kh1 {[%clk 0:02:11]}  Re8 {[%clk 0:00:53]} 22. Qb5 {[%clk 0:01:45]}  Rc5 {[%clk 0:00:48]} 23. Qa4 {[%clk 0:01:12]}  Nxc1 {[%clk 0:00:31]} 24. Qxa7 {[%clk 0:01:06]}  Ne2 {[%clk 0:00:28]} 25. Qxb7 {[%clk 0:01:00]}  Nxf4 {[%clk 0:00:27]} 26. Rxf4 {[%clk 0:01:01]}  Rf8 {[%clk 0:00:24]} 27. Qe7 {[%clk 0:00:09]}  Qxe7 {[%clk 0:00:20]} 28. dxe7 {[%clk 0:00:10]}  Re8 {[%clk 0:00:21]} 29. h3 {[%clk 0:00:10]}  Rxe7 {[%clk 0:00:21]} 30. Kh2 {[%clk 0:00:10]}  Rb5 {[%clk 0:00:21]} 31. Bc2 {[%clk 0:00:10]}  Rb2 {[%clk 0:00:22]} 32. Ba4 {[%clk 0:00:10]}  Rxa2 {[%clk 0:00:22]} 33. Bb5 {[%clk 0:00:11]}  Rc2 {[%clk 0:00:22]} 34. Rf3 {[%clk 0:00:11]}  Rxe4 {[%clk 0:00:21]} 35. Bc6 {[%clk 0:00:10]}  Ree2 {[%clk 0:00:20]} 36. Bd5 {[%clk 0:00:10]}  Rxg2+ {[%clk 0:00:20]} 37. Kh1 {[%clk 0:00:11]}  Rgd2 {[%clk 0:00:20]} 38. Bxf7+ {[%clk 0:00:11]}  Kg7 {[%clk 0:00:20]} 39. Rf1 {[%clk 0:00:11]}  Rf2 {[%clk 0:00:21]} 40. Rxf2 {[%clk 0:00:10]}  Rxf2 {[%clk 0:00:21]} 41. Bxc4 {[%clk 0:00:11]}  Rc2 {[%clk 0:00:21]} 42. Bb5 {[%clk 0:00:11]}  Rxc3 {[%clk 0:00:21]} 43. Kg2 {[%clk 0:00:12]}  Rc5 {[%clk 0:00:22]} 44. Bd7 {[%clk 0:00:12]}  b5 {[%clk 0:00:23]} 45. Bg4 {[%clk 0:00:12]}  b4 {[%clk 0:00:24]} 46. Be2 {[%clk 0:00:13]}  Rc3 {[%clk 0:00:25]} 47. Kf2 {[%clk 0:00:13]}  b3 {[%clk 0:00:25]} 48. Bg4 {[%clk 0:00:13]}  b2 {[%clk 0:00:26]} 49. Ke2 {[%clk 0:00:14]}  b1=Q {[%clk 0:00:26]} 50. Kd2 {[%clk 0:00:14]}  Qb2+ {[%clk 0:00:27]} 51. Kd1 {[%clk 0:00:15]}  Rc1# {[%clk 0:00:28]} 0-1


[Site "https://www.chess.com"]